bitfinex/quotes_BTCUSD_20211001
["timestamp","ask_amount","ask_price","bid_price","bid_amount"]
[1633097761624,0.21792594,47258.0,47257.0,0.07218527]
[1633097761827,0.21792594,47258.0,47257.0,6.046e-05]
[1633097762024,0.32792594,47258.0,47257.0,6.046e-05]
[1633097762829,0.35792594,47258.0,47257.0,6.046e-05]
[1633097763826,0.35792594,47258.0,47257.0,0.21896046]
[1633097763827,0.67537694,47258.0,47257.0,0.21896046]
[1633097764028,0.67537694,47258.0,47257.0,6.046e-05]
[1633097764228,0.87046075,47258.0,47257.0,6.046e-05]
[1633097764429,0.64537694,47258.0,47257.0,6.046e-05]
[1633097764630,0.211626,47257.0,47254.0,0.23781211]
[1633097764833,0.211626,47257.0,47255.0,0.2189]
[1633097765430,0.211626,47257.0,47254.0,0.23781211]
[1633097765431,0.18913946,47255.0,47254.0,0.23781211]
[1633097765631,0.211626,47257.0,47254.0,0.45671211]
[1633097765828,0.211626,47257.0,47255.0,0.2189]
[1633097766632,0.2466644,47256.0,47255.0,0.2189]
[1633097767428,0.24707305,47257.0,47255.0,0.2189]
[1633097767628,0.24707305,47257.0,47254.0,0.14481746]
[1633097767630,0.241626,47257.0,47254.0,0.14481746]
[1633097768028,0.241626,47257.0,47255.0,0.2189]
[1633097768029,0.211626,47257.0,47255.0,0.2189]
[1633097768830,0.242626,47257.0,47255.0,0.2189]
[1633097769428,0.242626,47257.0,47254.0,0.14481746]
[1633097769627,0.242626,47257.0,47255.0,0.2189]
[1633097770030,0.211626,47257.0,47255.0,0.2189]
[1633097770234,0.211626,47257.0,47254.0,0.14481746]
[1633097770235,0.21287594,47257.0,47254.0,0.14481746]
[1633097770432,0.40708528,47257.0,47254.0,0.14481746]
[1633097770632,0.16287594,47257.0,47255.0,0.2189]
[1633097770834,0.193626,47257.0,47255.0,0.2189]
[1633097772133,0.161626,47257.0,47255.0,0.2189]
[1633097772733,0.193626,47257.0,47255.0,0.2189]
[1633097772938,0.00178097,47256.0,47254.0,0.14481746]
[1633097773138,0.00124281,47255.0,47254.0,0.14481746]
[1633097773939,0.31875381,47255.0,47254.0,0.14481746]
[1633097774338,0.81875381,47255.0,47254.0,0.14481746]
[1633097774541,0.93323391,47255.0,47254.0,0.14481746]
[1633097774734,1.08766415,47255.0,47254.0,0.14481746]
[1633097774938,0.58766415,47255.0,47254.0,0.14481746]
[1633097775135,0.58766415,47255.0,47250.0,48.64615204]
[1633097775337,0.50124754,47252.0,47250.0,48.64615204]
[1633097775736,0.50124754,47252.0,47251.0,0.09857256]
[1633097776139,0.50124754,47252.0,47250.0,48.64615204]
[1633097776338,0.31880254,47252.0,47250.0,48.64615204]
[1633097776742,0.34980254,47252.0,47250.0,48.64615204]
[1633097777337,0.0005301,47251.0,47250.0,48.64615204]
[1633097777940,0.56149654,47252.0,47250.0,48.64615204]
[1633097779337,0.56202664,47252.0,47250.0,48.64615204]
[1633097779538,0.56149654,47252.0,47250.0,48.64615204]
[1633097779939,0.56149654,47252.0,47250.0,48.33615204]
[1633097780139,0.53049654,47252.0,47250.0,48.33615204]
[1633097780340,0.53049654,47252.0,47250.0,48.33622057]
[1633097780538,0.25355682,47251.0,47250.0,48.33752979]
[1633097781341,0.25476891,47251.0,47250.0,48.33752979]
[1633097781941,0.23222331,47251.0,47250.0,48.33752979]
[1633097782341,0.00121209,47251.0,47250.0,48.33752979]
[1633097782748,0.03221209,47251.0,47250.0,48.33752979]
[1633097782943,0.03221209,47251.0,47250.0,48.55642979]
[1633097783142,0.031,47251.0,47250.0,48.33752979]
[1633097783541,0.031,47251.0,47250.0,48.55899564]
[1633097783747,0.031,47251.0,47250.0,48.57887061]
[1633097784146,0.61,47258.0,47250.0,48.57887061]
[1633097784148,0.61744846,47258.0,47250.0,48.57887061]
[1633097784341,0.61744846,47258.0,47251.0,0.2189]
[1633097784543,0.61744846,47258.0,47252.0,0.0186]
[1633097784744,0.61744846,47258.0,47256.0,0.2705677]
[1633097784746,0.86206817,47258.0,47256.0,0.2705677]
[1633097785006,0.86206817,47258.0,47257.0,0.2375]
[1633097785007,0.36206817,47258.0,47257.0,0.2375]
[1633097785207,0.58313151,47258.0,47257.0,0.2375]
[1633097785406,0.58319196,47258.0,47257.0,0.2375]
[1633097785607,0.58319196,47258.0,47257.0,0.5875]
[1633097785806,0.58319196,47258.0,47257.0,0.2375]
[1633097786009,0.90064996,47258.0,47257.0,0.23880903]
[1633097786205,0.90064996,47258.0,47257.0,0.01990903]
[1633097786206,0.86764996,47258.0,47257.0,0.01990903]
[1633097786803,0.89764996,47258.0,47257.0,0.01990903]
[1633097787205,0.89264996,47258.0,47257.0,0.01990903]
[1633097787608,0.89264996,47258.0,47257.0,0.00130903]
[1633097787813,1.13476193,47258.0,47257.0,0.00130903]
[1633097788010,1.13529203,47258.0,47257.0,0.00130903]
[1633097788208,1.10529203,47258.0,47257.0,0.00130903]
[1633097788410,1.10476193,47258.0,47257.0,0.00130903]
[1633097788807,0.8934539,47258.0,47257.0,0.00130903]
[1633097789613,0.8934539,47258.0,47250.0,48.34006139]
[1633097789614,0.10521667,47252.0,47250.0,48.33878642]
[1633097789811,0.00123487,47251.0,47250.0,48.33878642]
[1633097790009,0.817566,47252.0,47250.0,48.33878642]
[1633097790010,1.03575336,47252.0,47250.0,48.33878642]
[1633097790209,1.029279,47252.0,47250.0,48.33878642]
[1633097790809,1.058279,47252.0,47250.0,48.33878642]
[1633097792210,1.029279,47252.0,47250.0,48.33878642]
[1633097792808,1.058279,47252.0,47250.0,48.33878642]
[1633097793011,1.048279,47252.0,47250.0,48.33878642]
[1633097793411,0.0012158,47251.0,47250.0,48.24746663]
[1633097794611,0.4246308,47251.0,47250.0,48.24746663]
[1633097794810,0.4546308,47251.0,47250.0,48.24746663]
[1633097795411,0.68172605,47251.0,47250.0,48.24746663]
[1633097796212,0.68307927,47251.0,47250.0,48.24746663]
[1633097796410,0.4546308,47251.0,47250.0,48.24746663]
[1633097796809,0.68113891,47251.0,47250.0,48.24746663]
[1633097797214,0.4546308,47251.0,47250.0,48.24746663]
[1633097797809,0.67910579,47251.0,47250.0,48.24746663]
[1633097798213,0.64910579,47251.0,47250.0,48.24746663]
[1633097799012,0.68010579,47251.0,47250.0,48.24746663]
[1633097799214,0.4556308,47251.0,47250.0,48.24746663]
[1633097799615,0.4556308,47251.0,47250.0,48.18608442]
[1633097799616,0.68410256,47251.0,47250.0,48.18608442]
[1633097799816,0.4556308,47251.0,47250.0,48.18608442]
[1633097800216,0.65005314,47251.0,47250.0,48.18608442]
[1633097800620,0.65297859,47251.0,47250.0,48.18608442]
[1633097801416,0.68549203,47251.0,47250.0,48.18608442]
[1633097801618,0.4546308,47251.0,47250.0,48.18608442]
[1633097801815,0.68121005,47251.0,47250.0,48.18608442]
[1633097802017,0.453415,47251.0,47250.0,48.18608442]
[1633097802217,0.68130672,47251.0,47250.0,48.18608442]
[1633097802416,0.453415,47251.0,47250.0,48.18608442]
[1633097802617,0.423415,47251.0,47250.0,48.18608442]
[1633097802817,0.64948767,47251.0,47250.0,48.18608442]
[1633097803020,0.454415,47251.0,47250.0,48.18608442]
[1633097803219,0.454415,47251.0,47250.0,48.13608442]
[1633097803624,0.031,47251.0,47250.0,48.13608442]
[1633097804219,0.32384086,47252.0,47250.0,48.13608442]
[1633097804417,0.317566,47252.0,47250.0,48.13608442]
[1633097805019,0.349566,47252.0,47250.0,48.13608442]
[1633097805418,0.349566,47252.0,47250.0,48.12108442]
[1633097806221,0.317566,47252.0,47250.0,48.12108442]
[1633097807024,0.349566,47252.0,47250.0,48.12108442]
[1633097808824,0.317566,47252.0,47250.0,48.12108442]
[1633097809024,0.348566,47252.0,47250.0,48.08648442]
[1633097809423,0.3490961,47252.0,47250.0,48.08648442]
[1633097809824,0.348566,47252.0,47250.0,48.08648442]
[1633097810624,0.317566,47252.0,47250.0,48.08648442]
[1633097811023,0.348566,47252.0,47250.0,48.08648442]
[1633097812223,0.317566,47252.0,47250.0,48.08648442]
[1633097813024,0.348566,47252.0,47250.0,48.08648442]
[1633097814428,0.23224501,47251.0,47250.0,48.08648442]
[1633097814827,0.32420971,47252.0,47250.0,48.08648442]
[1633097815027,0.0325301,47251.0,47250.0,48.08648442]
[1633097815227,0.032,47251.0,47250.0,48.08648442]
[1633097815428,0.455372,47251.0,47250.0,48.08648442]
[1633097815628,0.68126599,47251.0,47250.0,48.08648442]
[1633097815826,0.4559021,47251.0,47250.0,48.08648442]
[1633097816428,0.4239021,47251.0,47250.0,48.08648442]
[1633097816831,0.67406715,47251.0,47250.0,47.6630125]
[1633097817027,2.09329444,47251.0,47250.0,43.35843335]
[1633097817228,2.09329444,47251.0,47250.0,42.64266635]
[1633097817230,2.59453341,47251.0,47250.0,42.64266635]
[1633097817430,2.60199367,47251.0,47250.0,42.21913491]
[1633097817629,2.60199367,47251.0,47250.0,41.64826748]
[1633097817630,2.89545935,47251.0,47250.0,41.64826748]
[1633097817830,2.89545935,47251.0,47250.0,41.46407846]
[1633097817831,1.73858365,47251.0,47250.0,41.46407846]
[1633097818031,1.56131324,47251.0,47250.0,41.46407846]
[1633097818229,3.05655894,47251.0,47250.0,34.18699353]
[1633097818432,3.05655894,47251.0,47250.0,25.85846638]
[1633097818434,4.3531932,47251.0,47250.0,25.85846638]
[1633097818632,4.3531932,47251.0,47250.0,20.63624428]
[1633097818636,4.62271173,47251.0,47250.0,20.63624428]
[1633097818829,4.62271173,47251.0,47250.0,20.21264928]
[1633097819029,4.5330863,47251.0,47250.0,20.21264928]
[1633097819231,4.5330863,47251.0,47250.0,17.96478447]
[1633097819233,4.71087476,47251.0,47250.0,17.96478447]
[1633097819435,4.71087476,47251.0,47250.0,17.42657226]
[1633097819630,4.5330863,47251.0,47250.0,17.42657226]
[1633097819838,4.5330863,47251.0,47250.0,17.00300426]
[1633097820034,4.79698217,47251.0,47250.0,17.00300426]
[1633097820233,4.76398217,47251.0,47250.0,14.84155935]
[1633097820440,4.76398217,47251.0,47250.0,12.07186603]
[1633097820441,4.87398217,47251.0,47250.0,12.07186603]
[1633097820630,4.87398217,47251.0,47250.0,11.48730995]
[1633097820631,4.50658371,47251.0,47250.0,11.48730995]
[1633097820832,4.50658371,47251.0,47250.0,11.06367795]
[1633097820833,4.77047958,47251.0,47250.0,11.06367795]
[1633097821035,4.42658371,47251.0,47250.0,11.06367795]
[1633097821237,4.74567654,47251.0,47250.0,11.06367795]
[1633097821433,4.27553218,47251.0,47250.0,11.06367795]
[1633097821640,4.21431188,47251.0,47250.0,11.06367795]
[1633097821832,3.91431188,47251.0,47250.0,11.06367795]
[1633097822032,3.91431188,47251.0,47250.0,10.55544187]
[1633097822235,3.34135985,47251.0,47250.0,10.55544187]
[1633097822436,4.20453624,47251.0,47250.0,10.55544187]
[1633097822634,4.14933928,47251.0,47250.0,10.55544187]
[1633097822835,4.35807767,47251.0,47250.0,10.47078579]
[1633097823031,4.35807767,47251.0,47250.0,10.04719479]
[1633097823032,4.38907767,47251.0,47250.0,10.04719479]
[1633097823234,4.68907767,47251.0,47250.0,10.04719479]
[1633097823434,4.78304013,47251.0,47250.0,9.62360379]
[1633097824238,4.78304013,47251.0,47250.0,9.53894771]
[1633097824239,4.75204013,47251.0,47250.0,9.53894771]
[1633097824636,4.75204013,47251.0,47250.0,9.11535071]
[1633097825032,4.78304013,47251.0,47250.0,9.11535071]
[1633097825232,4.68907767,47251.0,47250.0,9.11535071]
[1633097825432,4.38907767,47251.0,47250.0,9.03069463]
[1633097825632,4.68907767,47251.0,47250.0,9.03069463]
[1633097825835,4.68907767,47251.0,47250.0,8.30894628]
[1633097826237,4.68907767,47251.0,47250.0,7.8006842]
[1633097826435,4.65807767,47251.0,47250.0,7.8006842]
[1633097826635,4.35807767,47251.0,47250.0,7.8006842]
[1633097826841,2.38398228,47251.0,47250.0,7.8006842]
[1633097827035,2.41698228,47251.0,47250.0,7.8006842]
[1633097827433,2.41698228,47251.0,47250.0,7.71602812]
[1633097827834,1.91698228,47251.0,47250.0,7.71102812]
[1633097828434,1.88270499,47251.0,47250.0,7.71102812]
[1633097828635,1.88270499,47251.0,47250.0,7.62637204]
[1633097828837,1.90479021,47251.0,47250.0,7.62637204]
[1633097829034,1.93679021,47251.0,47250.0,7.62637204]
[1633097829234,1.93168165,47251.0,47250.0,7.62637204]
[1633097829435,1.92918985,47251.0,47250.0,7.62637204]
[1633097829634,1.92865975,47251.0,47250.0,7.62637204]
[1633097830238,1.92865975,47251.0,47250.0,7.54171596]
[1633097830436,2.10807848,47251.0,47250.0,7.54171596]
[1633097830638,3.23260858,47251.0,47250.0,7.54171596]
[1633097831036,3.26460858,47251.0,47250.0,7.45705988]
[1633097831441,3.56460858,47251.0,47250.0,7.45705988]
[1633097831639,3.77334697,47251.0,47250.0,7.45705988]
[1633097832039,3.77334697,47251.0,47250.0,7.03342488]
[1633097832235,3.69782387,47251.0,47250.0,7.03342488]
[1633097832437,3.69782387,47251.0,47250.0,6.9487688]
[1633097832936,3.66582387,47251.0,47250.0,6.9487688]
[1633097833138,4.19682387,47251.0,47250.0,6.9487688]
[1633097833741,4.16582387,47251.0,47250.0,6.86411272]
[1633097834543,4.16582387,47251.0,47231.0,0.01]
[1633097834544,0.5,47248.0,47231.0,0.01]
[1633097834745,0.5,47232.0,47231.0,0.01]
[1633097834942,0.6364331,47232.0,47231.0,0.01]
[1633097835141,0.635903,47232.0,47231.0,0.01024197]
[1633097835543,1.135903,47232.0,47231.0,0.01024197]
[1633097835746,1.135903,47232.0,47225.0,0.33665024]
[1633097835747,0.2189,47231.0,47225.0,0.33665024]
[1633097835944,0.2189,47231.0,47225.0,0.00124971]
[1633097836344,0.0005301,47230.0,47225.0,0.00124971]
[1633097836545,0.5,47228.0,47225.0,0.00124971]
[1633097836753,0.2189,47227.0,47225.0,0.00124971]
[1633097837144,0.2189,47227.0,47226.0,1.25006051]
[1633097837342,0.50573852,47228.0,47226.0,1.25006051]
[1633097837343,0.53873852,47228.0,47226.0,1.25006051]
[1633097837543,0.533,47228.0,47226.0,1.25006051]
[1633097838344,0.317711,47227.0,47226.0,1.25006051]
[1633097839342,0.459711,47227.0,47226.0,1.25006051]
[1633097840744,0.427711,47227.0,47226.0,1.25006051]
[1633097840945,0.635415,47235.0,47226.0,1.25006051]
[1633097840947,0.005708,47236.0,47227.0,1.46]
[1633097841147,0.00126843,47240.0,47227.0,1.46]
[1633097841148,0.5,47239.0,47227.0,1.46]
[1633097841347,0.00126843,47240.0,47227.0,1.46]
[1633097841348,0.00126843,47240.0,47232.0,0.11661649]
[1633097841349,0.00679713,47240.0,47232.0,0.11661649]
[1633097841546,0.00679713,47240.0,47228.0,0.35750976]
[1633097841548,0.00630149,47240.0,47228.0,0.35750976]
[1633097841750,0.5,47241.0,47233.0,0.26575239]
[1633097842013,0.91571673,47249.0,47237.0,0.00123465]
[1633097842014,2.1571,47247.0,47237.0,0.00123465]
[1633097842212,0.2189,47246.0,47237.0,0.00123465]
[1633097842412,6.048e-05,47238.0,47237.0,0.00123465]
[1633097843012,0.34966448,47238.0,47237.0,1.95123465]
[1633097843518,0.34966448,47238.0,47237.0,2.17013465]
[1633097843519,0.03206048,47238.0,47237.0,2.17013465]
[1633097843716,0.03206048,47238.0,47237.0,2.17139629]
[1633097843912,0.03206048,47238.0,47237.0,2.62289927]
[1633097844113,0.03206048,47238.0,47237.0,2.17139629]
[1633097844313,0.03206048,47238.0,47237.0,1.95]
[1633097844314,6.048e-05,47238.0,47237.0,1.95]
[1633097844510,6.048e-05,47238.0,47237.0,2.1689]
[1633097845112,0.03406048,47238.0,47237.0,2.1689]
[1633097845313,0.35167348,47238.0,47237.0,2.1689]
[1633097845513,0.03406048,47238.0,47237.0,2.26341102]
[1633097846116,0.03406048,47238.0,47237.0,2.17133886]
[1633097846312,0.03406048,47238.0,47237.0,0.00120521]
[1633097846513,6.048e-05,47238.0,47237.0,0.00120521]
[1633097846912,6.048e-05,47238.0,47237.0,1.10120521]
[1633097847115,0.03506048,47238.0,47237.0,1.10120521]
[1633097848512,6.048e-05,47238.0,47237.0,1.10120521]
[1633097848910,6.048e-05,47238.0,47237.0,1.80120521]
[1633097849110,6.048e-05,47238.0,47237.0,1.10120521]
[1633097849111,0.03306048,47238.0,47237.0,1.10120521]
[1633097849314,0.03306048,47238.0,47236.0,0.211705]
[1633097849516,0.03306048,47238.0,47233.0,6.171e-05]
[1633097849518,0.53306048,47238.0,47233.0,6.171e-05]
[1633097849713,0.2189,47237.0,47233.0,6.171e-05]
[1633097850313,0.317676,47236.0,47233.0,6.171e-05]
[1633097850517,0.22010081,47234.0,47233.0,6.171e-05]
[1633097850718,0.56902442,47234.0,47233.0,6.171e-05]
[1633097850914,0.56782361,47234.0,47233.0,6.171e-05]
[1633097851115,1.09982361,47234.0,47233.0,6.171e-05]
[1633097852121,0.7514301,47234.0,47233.0,6.171e-05]
[1633097852515,0.7194301,47234.0,47233.0,6.171e-05]
[1633097853115,0.7504301,47234.0,47233.0,6.171e-05]
[1633097853316,1.05801385,47234.0,47233.0,6.171e-05]
[1633097854118,1.05669942,47234.0,47233.0,6.171e-05]
[1633097854518,1.02569942,47234.0,47233.0,6.171e-05]
[1633097855116,1.05769942,47234.0,47233.0,6.171e-05]
[1633097856521,1.02569942,47234.0,47233.0,6.171e-05]
[1633097857120,1.05796967,47234.0,47233.0,6.171e-05]
[1633097857320,0.7504301,47234.0,47233.0,6.171e-05]
[1633097857520,0.75169143,47234.0,47233.0,6.171e-05]
[1633097857720,1.05787948,47234.0,47233.0,6.171e-05]
[1633097857915,0.7504301,47234.0,47233.0,6.171e-05]
[1633097858318,0.7189,47234.0,47233.0,6.171e-05]
[1633097858918,0.7094301,47234.0,47233.0,6.171e-05]
[1633097859119,0.82433412,47234.0,47233.0,6.171e-05]
[1633097859320,0.81933412,47234.0,47233.0,6.171e-05]
[1633097859518,0.81880402,47234.0,47233.0,6.171e-05]
[1633097859920,0.7349,47234.0,47233.0,6.171e-05]
[1633097860320,0.531,47234.0,47233.0,6.171e-05]
[1633097860523,1.07368224,47234.0,47233.0,6.171e-05]
[1633097860721,1.07368224,47234.0,47229.0,0.211791]
[1633097860722,1.07368224,47234.0,47226.0,6.051e-05]
[1633097860725,0.219019,47230.0,47226.0,6.051e-05]
[1633097860923,0.96466324,47234.0,47211.0,0.01]
[1633097860925,0.12713104,47222.0,47211.0,0.01]
[1633097861125,0.50129594,47212.0,47211.0,0.01]
[1633097861325,2.0747764,47212.0,47211.0,0.01]
[1633097861635,2.15270756,47212.0,47211.0,0.01]
[1633097861839,2.15270756,47212.0,47198.0,0.00076895]
[1633097861840,2.20780048,47212.0,47198.0,0.00076895]
[1633097862031,0.56349876,47199.0,47198.0,0.00076895]
[1633097862223,0.56349876,47199.0,47191.0,0.01]
[1633097862224,1.95515118,47199.0,47191.0,0.01]
[1633097862423,0.3,47194.0,47191.0,0.01]
[1633097862628,0.219019,47192.0,47191.0,0.01]
[1633097862821,0.219019,47192.0,47190.0,0.000769]
[1633097862822,0.62517246,47192.0,47190.0,0.000769]
[1633097863025,1.04817816,47191.0,47190.0,0.000769]
[1633097863227,1.06797969,47191.0,47190.0,0.000769]
[1633097863425,1.06797969,47191.0,47171.0,0.01]
[1633097863426,0.219019,47187.0,47171.0,0.01]
[1633097863627,0.07263,47173.0,47171.0,0.01]
[1633097863824,0.05235,47174.0,47171.0,0.01]
[1633097864022,0.05235,47174.0,47172.0,0.45015898]
[1633097864224,0.05235,47174.0,47173.0,0.000642]
[1633097864622,0.00872315,47181.0,47173.0,0.000642]
[1633097864623,8e-06,47175.0,47173.0,0.000642]
[1633097864929,0.424168,47180.0,47174.0,0.00123258]
[1633097865126,0.5,47184.0,47174.0,0.00123258]
[1633097865128,0.032,47175.0,47174.0,0.00123258]
[1633097865723,0.032,47175.0,47174.0,2.10123258]
[1633097866526,0.52618287,47177.0,47174.0,2.10123258]
[1633097866925,0.52618287,47177.0,47176.0,1.25060562]
[1633097867127,0.52618287,47177.0,47176.0,0.00060562]
[1633097867128,0.55718287,47177.0,47176.0,0.00060562]
[1633097867326,0.77620187,47177.0,47176.0,0.00060562]
[1633097867727,0.77620187,47177.0,47176.0,0.55060562]
[1633097867929,0.77620187,47177.0,47176.0,0.00060562]
[1633097868130,1.0779874,47177.0,47176.0,0.00060562]
[1633097868331,0.77620187,47177.0,47176.0,0.00060562]
[1633097868533,0.74520187,47177.0,47176.0,0.00060562]
[1633097868733,0.74520187,47177.0,47176.0,0.55060562]
[1633097868929,0.74520187,47177.0,47176.0,0.00060562]
[1633097869130,0.77720187,47177.0,47176.0,0.00060562]
[1633097869331,0.569024,47177.0,47176.0,0.00060562]
[1633097869733,0.569024,47177.0,47176.0,0.85060562]
[1633097870132,0.569024,47177.0,47176.0,0.93278045]
[1633097870133,0.251019,47177.0,47176.0,0.93278045]
[1633097870533,0.219019,47177.0,47176.0,0.00186083]
[1633097870732,0.219019,47177.0,47176.0,0.35186083]
[1633097870935,0.329019,47177.0,47176.0,0.33686083]
[1633097871134,0.361019,47177.0,47176.0,0.33686083]
[1633097871735,0.361019,47177.0,47176.0,1.43811755]
[1633097872134,0.361019,47177.0,47176.0,1.53763615]
[1633097872135,0.142,47177.0,47176.0,1.53763615]
[1633097872537,0.329019,47177.0,47176.0,0.43763615]
[1633097872734,0.329019,47177.0,47176.0,0.00125672]
[1633097873132,0.360019,47177.0,47176.0,0.00125672]
[1633097873735,0.360019,47177.0,47176.0,0.65125672]
[1633097874135,0.360019,47177.0,47176.0,0.00125672]
[1633097874334,0.67803,47177.0,47176.0,0.00125672]
[1633097874531,0.64703,47177.0,47176.0,0.00125672]
[1633097875138,0.67803,47177.0,47176.0,0.00125672]
[1633097875733,0.67803,47177.0,47176.0,0.45125672]
[1633097875932,0.67803,47177.0,47176.0,0.00125672]
[1633097876134,0.92402293,47177.0,47176.0,0.00125672]
[1633097876535,0.64703,47177.0,47176.0,0.00125672]
[1633097877134,0.67903,47177.0,47176.0,0.00125672]
[1633097877335,0.67903,47177.0,47176.0,0.31287515]
[1633097878137,0.67903,47177.0,47175.0,0.21329046]
[1633097878139,0.861019,47177.0,47175.0,0.21329046]
[1633097878340,0.120765,47176.0,47175.0,0.21329046]
[1633097878941,0.120765,47176.0,47175.0,0.21199735]
[1633097879139,0.151765,47176.0,47175.0,0.21199735]
[1633097880141,0.151765,47176.0,47175.0,0.96328626]
[1633097880542,0.120765,47176.0,47175.0,0.21328626]
[1633097881141,0.149765,47176.0,47175.0,0.21328626]
[1633097882340,0.149765,47176.0,47175.0,0.19195764]
[1633097882544,0.120765,47176.0,47175.0,0.19195764]
[1633097883143,0.150765,47176.0,47175.0,0.19195764]
[1633097883549,0.150765,47176.0,47175.0,0.69195764]
[1633097883944,0.150765,47176.0,47175.0,0.19195764]
[1633097884547,0.120765,47176.0,47175.0,0.64195764]
[1633097884748,0.120765,47176.0,47175.0,0.19195764]
[1633097885151,0.150765,47176.0,47175.0,0.19195764]
[1633097885547,0.150765,47176.0,47175.0,0.49195764]
[1633097886347,0.249019,47176.0,47175.0,0.19195764]
[1633097886548,0.219019,47176.0,47175.0,0.19195764]
[1633097886946,0.219019,47176.0,47175.0,0.18695764]
[1633097887144,0.251019,47176.0,47175.0,0.18695764]
[1633097887544,0.251019,47176.0,47175.0,1.03695764]
[1633097888546,0.928014,47177.0,47175.0,1.03695764]
[1633097889150,0.219019,47176.0,47175.0,1.03695764]
[1633097889351,0.963014,47177.0,47175.0,1.03695764]
[1633097889751,0.963014,47177.0,47175.0,0.18566873]
[1633097889753,0.22022175,47176.0,47175.0,0.18566873]
[1633097890017,0.52370933,47176.0,47175.0,0.18566873]
[1633097890213,0.52370933,47176.0,47175.0,0.48566873]
[1633097890215,0.219019,47176.0,47175.0,0.48566873]
[1633097890416,0.219019,47176.0,47175.0,0.18566873]
[1633097890613,0.719019,47176.0,47175.0,0.18566873]
[1633097891215,5.0,47179.0,47178.0,2.315]
[1633097891415,5.0,47179.0,47178.0,2.3348357]
[1633097891616,5.0,47179.0,47178.0,2.4448357]
[1633097891617,5.4515,47179.0,47178.0,2.4448357]
[1633097891820,5.4515,47179.0,47178.0,0.8848357]
[1633097891821,5.0,47179.0,47178.0,0.8848357]
[1633097892017,4.9011,47179.0,47178.0,1.7848357]
[1633097892216,4.9011,47179.0,47178.0,1.98922893]
[1633097892217,4.47722808,47179.0,47178.0,1.98922893]
[1633097892419,4.47722808,47179.0,47178.0,2.30710893]
[1633097892620,4.36812808,47179.0,47178.0,2.30710893]
[1633097892819,4.36812808,47179.0,47178.0,3.43110893]
[1633097893026,4.36812808,47179.0,47178.0,2.53110893]
[1633097893225,4.36812808,47179.0,47178.0,2.45110893]
[1633097893226,4.38712808,47179.0,47178.0,2.45110893]
[1633097893422,4.38712808,47179.0,47178.0,1.32710893]
[1633097893825,0.33,47191.0,47178.0,1.32710893]
[1633097893826,0.317909,47191.0,47184.0,0.21194]
[1633097894030,0.0012483,47204.0,47184.0,0.21194]
[1633097894035,0.607819,47214.0,47209.0,0.02677536]
[1633097894228,0.25127466,47219.0,47213.0,0.32791729]
[1633097894231,0.25,47219.0,47213.0,0.32791729]
[1633097894427,0.25,47219.0,47211.0,0.44816135]
[1633097894428,0.25,47219.0,47217.0,0.0012746]
[1633097894627,0.29643908,47221.0,47212.0,0.0186]
[1633097894628,0.0004357,47214.0,47212.0,0.0186]
[1633097894828,0.0004357,47214.0,47211.0,0.44816135]
[1633097895028,0.09137848,47213.0,47211.0,0.44816135]
[1633097895225,0.00041151,47212.0,47211.0,0.44816135]
[1633097895429,0.18214766,47212.0,47211.0,0.44816135]
[1633097895624,0.40116666,47212.0,47211.0,0.44816135]
[1633097896427,0.18214766,47212.0,47211.0,0.44816135]
[1633097897226,0.21314766,47212.0,47211.0,0.44816135]
[1633097897828,0.21314766,47212.0,47211.0,0.76834402]
[1633097898630,0.18214766,47212.0,47211.0,0.76834402]
[1633097898828,0.18214766,47212.0,47211.0,0.76965433]
[1633097899233,0.21314766,47212.0,47211.0,0.76965433]
[1633097899427,0.21314766,47212.0,47211.0,0.44947166]
[1633097899629,0.21314766,47212.0,47204.0,0.211814]
[1633097899631,0.211857,47207.0,47204.0,0.211814]
[1633097899832,0.211857,47207.0,47199.0,0.21315793]
[1633097899833,0.211857,47207.0,47199.0,0.211862]
[1633097899835,0.0005301,47206.0,47199.0,0.211862]
[1633097900032,0.11064966,47205.0,47199.0,0.211862]
[1633097900234,0.00026634,47200.0,47199.0,0.211862]
[1633097901233,0.03426634,47200.0,47199.0,0.211862]
[1633097902636,0.00026634,47200.0,47199.0,0.211862]
[1633097902833,0.00026634,47200.0,47188.0,0.211912]
[1633097902834,0.21928534,47200.0,47188.0,0.211912]
[1633097903033,0.31188307,47199.0,47188.0,0.211912]
[1633097903232,0.00013319,47189.0,47188.0,0.211912]
[1633097903434,0.00013319,47189.0,47188.0,0.430931]
[1633097903633,0.00013319,47189.0,47188.0,0.74245871]
[1633097903833,0.00013319,47189.0,47188.0,0.52343971]
[1633097904432,0.00013319,47189.0,47188.0,0.74245871]
[1633097904833,0.00013319,47189.0,47188.0,0.64245871]
[1633097905033,0.00013319,47189.0,47188.0,0.73630541]
[1633097905234,0.02013319,47189.0,47188.0,1.41730541]
[1633097905439,0.02013319,47189.0,47188.0,0.76730541]
[1633097906231,0.02013319,47189.0,47188.0,1.66730541]
[1633097906636,0.02013319,47189.0,47188.0,1.63630541]
[1633097906637,0.00013319,47189.0,47188.0,1.63630541]
[1633097906837,0.2415133,47203.0,47196.0,0.211887]
[1633097907036,0.2415133,47203.0,47197.0,0.07539165]
[1633097907234,0.2415133,47203.0,47199.0,0.211889]
[1633097907636,0.00013318,47200.0,47199.0,0.211889]
[1633097908437,0.01013318,47200.0,47199.0,0.211889]
[1633097909238,0.04413318,47200.0,47199.0,0.211889]
[1633097910444,0.04413318,47200.0,47199.0,0.430908]
[1633097910446,0.15413318,47200.0,47199.0,0.430908]
[1633097910641,0.12013318,47200.0,47199.0,0.430908]
[1633097910923,0.11513318,47200.0,47199.0,0.430908]
[1633097911247,0.15613318,47200.0,47199.0,0.50282668]
[1633097911445,0.15613318,47200.0,47199.0,1.02184568]
[1633097912043,0.15613318,47200.0,47199.0,0.50282668]
[1633097912446,0.15613318,47200.0,47199.0,0.72184568]
[1633097912651,0.11513318,47200.0,47199.0,0.72184568]
[1633097912848,0.11513318,47200.0,47199.0,0.50282668]
[1633097913450,0.11513318,47200.0,47199.0,0.50882668]
[1633097913451,0.14213318,47200.0,47199.0,0.50882668]
[1633097913916,0.14213318,47200.0,47199.0,0.87507778]
[1633097914654,0.14213318,47200.0,47199.0,0.5781401]
[1633097914655,0.11513318,47200.0,47199.0,0.5781401]
[1633097915453,0.15013318,47200.0,47199.0,0.5781401]
[1633097916654,0.11513318,47200.0,47199.0,0.5781401]
[1633097917451,0.15113318,47200.0,47199.0,0.5781401]
[1633097919253,0.11513318,47200.0,47199.0,0.5781401]
[1633097919452,0.14913318,47200.0,47199.0,0.5781401]
[1633097919653,0.14913318,47200.0,47185.0,0.3]
[1633097919654,0.14913318,47200.0,47180.0,1.106]
[1633097919655,3.2e-05,47199.0,47180.0,1.106]
[1633097919862,3.2e-05,47199.0,47180.0,1.0874]
[1633097919863,0.00121703,47192.0,47180.0,1.0874]